bitfinex-derivatives/quotes_SOLF0:USTF0_20241101
["timestamp","ask_amount","ask_price","bid_price","bid_amount"]
[1730484337551,11.56186641,166.48,166.4,4.3915]
[1730484338549,3.0049,166.44,166.4,4.3915]
[1730484338855,11.56186641,166.45,166.36,6.6861]
[1730484339160,11.56186641,166.43,166.36,6.6861]
[1730484339657,3.0056,166.4,166.37,3.006]
[1730484340954,3.0054,166.41,166.38,3.0059]
[1730484341341,11.56186641,166.45,166.36,3.68]
[1730484341550,3.0056,166.4,166.37,3.006]
[1730484341749,3.0056,166.4,166.36,3.68]
[1730484341750,11.56186641,166.45,166.36,3.68]
[1730484343263,3.0053,166.42,166.39,3.0056]
[1730484343456,3.0053,166.42,166.36,3.68]
[1730484344258,3.0053,166.42,166.39,3.0057]
[1730484344956,11.56186641,166.45,166.36,3.68]
[1730484345853,3.0053,166.42,166.39,3.0056]
[1730484346256,11.56186641,166.45,166.36,3.68]
[1730484346655,11.56186641,166.48,166.36,3.68]
[1730484346860,11.56186641,166.48,166.37,11.56186641]
[1730484347261,11.56186641,166.48,166.38,1.309]
[1730484347463,3.0046,166.45,166.42,3.005]
[1730484348970,2.659,166.49,166.38,1.309]
[1730484349265,11.56186641,166.47,166.38,1.309]
[1730484349659,3.0047,166.45,166.42,3.005]
[1730484351061,3.0047,166.45,166.38,1.309]
[1730484351657,3.0047,166.45,166.42,3.005]
[1730484353655,3.0048,166.44,166.42,3.005]
[1730484358558,3.0047,166.45,166.42,3.005]
[1730484360369,3.0042,166.48,166.42,3.0051]
[1730484360564,11.56186641,166.5,166.39,15.24186641]
[1730484360565,11.56186641,166.5,166.4,2.6924]
[1730484360770,11.56186641,166.48,166.4,2.6924]
[1730484360973,3.0047,166.45,166.42,3.005]
[1730484361375,3.0047,166.45,166.4,2.6924]
[1730484361878,3.0042,166.47,166.4,2.6924]
[1730484362173,1.3744,166.51,166.42,3.0051]
[1730484362372,11.56186641,166.48,166.42,3.0051]
[1730484362573,11.56186641,166.46,166.4,1.3754]
[1730484362773,11.56186641,166.46,166.39,3.0057]
[1730484363080,3.0056,166.4,166.35,3.68]
[1730484363380,3.0056,166.4,166.35,3.0064]
[1730484363568,3.0055,166.4,166.34,3.68]
[1730484363873,11.56186641,166.44,166.34,3.68]
[1730484364081,11.56186641,166.39,166.38,3.0058]
[1730484364391,15.24186641,166.39,166.25,2.6905]
[1730484364585,7.39276286,166.3,166.26,3.008]
[1730484364774,7.39276286,166.3,166.25,10.08326286]
[1730484365171,7.39276286,166.3,166.26,3.0079]
[1730484365472,7.39276286,166.3,166.25,10.08326286]
[1730484365676,7.39276286,166.28,166.23,1.277]
[1730484365968,7.39276286,166.29,166.23,8.66976286]
[1730484366375,7.39276286,166.28,166.23,1.277]
[1730484366777,11.55505081,166.3,166.23,1.277]
[1730484367271,3.0079,166.27,166.23,4.2855]
[1730484368175,3.0076,166.29,166.24,3.0082]
[1730484369178,11.55505081,166.32,166.24,3.0082]
[1730484369381,11.55505081,166.3,166.24,3.0082]
[1730484369981,11.55505081,166.3,166.25,3.0082]
[1730484370477,11.55505081,166.32,166.23,1.277]
[1730484370984,3.0072,166.31,166.23,1.277]
[1730484371571,14.56205081,166.32,166.24,11.55505081]
[1730484371773,11.55505081,166.32,166.24,11.55505081]
[1730484371973,11.55505081,166.32,166.28,3.0075]
[1730484372187,3.0069,166.33,166.28,3.0075]
[1730484372878,11.55505081,166.35,166.26,15.23505081]
[1730484373191,6.3761,166.37,166.26,15.23505081]
[1730484373192,3.0066,166.34,166.26,15.23505081]
[1730484373579,17.93115081,166.37,166.26,15.23505081]
[1730484373781,3.0065,166.35,166.26,15.23505081]
[1730484374075,17.93115081,166.37,166.29,3.0074]
[1730484374481,17.93115081,166.37,166.26,15.23505081]
[1730484374675,12.92275081,166.37,166.28,11.55505081]
[1730484374877,11.55505081,166.37,166.28,11.55505081]
[1730484375072,11.55505081,166.41,166.3,11.55505081]
[1730484375275,11.55505081,166.41,166.31,3.68]
[1730484375486,3.0059,166.38,166.34,3.0064]
[1730484376483,3.0057,166.39,166.35,3.0064]
[1730484377581,3.0057,166.39,166.31,4.96]
[1730484377582,11.55505081,166.41,166.31,4.96]
[1730484377884,3.0059,166.38,166.34,3.0066]
[1730484378280,11.55505081,166.41,166.31,4.96]
[1730484378481,11.55505081,166.41,166.33,3.0068]
[1730484378482,3.0061,166.37,166.33,3.0068]
[1730484379378,11.55505081,166.41,166.31,4.96]
[1730484379583,11.55505081,166.37,166.3,3.68]
[1730484380179,3.0064,166.35,166.31,3.007]
[1730484380485,11.55505081,166.39,166.3,3.68]
[1730484380786,3.0061,166.37,166.33,3.0067]
[1730484381083,3.0061,166.37,166.3,15.23505081]
[1730484381084,11.55505081,166.41,166.32,11.55505081]
[1730484382276,3.0059,166.38,166.32,11.55505081]
[1730484382879,3.0059,166.38,166.34,3.0065]
[1730484384183,3.0062,166.37,166.32,3.0069]
[1730484384390,11.55505081,166.39,166.32,3.0069]
[1730484384882,3.0064,166.36,166.32,3.0069]
[1730484387993,3.0064,166.36,166.3,3.68]
[1730484388288,3.0064,166.36,166.33,3.0067]
[1730484388485,3.0057,166.39,166.32,11.55505081]
[1730484389087,15.62655081,166.44,166.38,3.0057]
[1730484389088,3.0053,166.42,166.38,3.0057]
[1730484389287,14.24135081,166.44,166.38,3.0057]
[1730484389998,14.24135081,166.44,166.35,3.66]
[1730484390188,11.55505081,166.46,166.4,3.0055]
[1730484390383,3.9148,166.48,166.37,11.55505081]
[1730484390687,11.55505081,166.51,166.41,11.55505081]
[1730484390893,3.004,166.49,166.42,3.66]
[1730484391295,3.004,166.49,166.45,3.0044]
[1730484391695,3.0041,166.48,166.45,3.0044]
[1730484392702,3.0044,166.47,166.44,3.0047]
[1730484393701,11.55505081,166.49,166.42,3.66]
[1730484393894,11.55505081,166.49,166.43,3.0048]
[1730484394097,11.55505081,166.51,166.42,3.66]
[1730484394293,11.55505081,166.53,166.42,3.66]
[1730484394490,11.55505081,166.53,166.44,11.55505081]
[1730484394903,3.0039,166.5,166.46,3.0043]
[1730484395104,11.55505081,166.53,166.46,3.0043]
[1730484396303,3.0039,166.49,166.46,3.0043]
[1730484397398,3.0038,166.5,166.47,3.0041]
[1730484397901,12.82975081,166.55,166.44,11.55505081]
[1730484398099,69.61448059,166.66,166.48,15.21505081]
[1730484398100,11.55505081,166.58,166.48,15.21505081]
[1730484398404,3.0031,166.54,166.5,3.0036]
[1730484398702,11.55505081,166.55,166.48,3.66]
[1730484399089,3.0033,166.53,166.5,3.0037]
[1730484399507,3.0033,166.53,166.49,3.0038]
[1730484400002,3.0035,166.52,166.48,3.004]
[1730484401502,3.0035,166.52,166.49,3.0038]
[1730484404604,11.55505081,166.55,166.49,3.0038]
[1730484404815,3.003,166.54,166.51,3.0035]
[1730484405005,11.55505081,166.57,166.47,3.66]
[1730484405211,3.8353,166.61,166.48,15.21505081]
[1730484405212,11.55505081,166.59,166.48,15.21505081]
[1730484405408,3.0026,166.57,166.53,3.003]
[1730484405708,11.55505081,166.59,166.53,3.003]
[1730484405905,3.0026,166.56,166.53,3.003]
[1730484406609,3.0026,166.56,166.54,3.003]
[1730484408714,6.0025,166.64,166.51,11.55505081]
[1730484408920,3.0022,166.59,166.54,3.0029]
[1730484409116,3.0022,166.59,166.51,11.55505081]
[1730484409117,3.0022,166.59,166.53,3.66]
[1730484409518,3.0023,166.58,166.55,3.0026]
[1730484410316,11.55505081,166.62,166.53,3.66]
[1730484410516,11.55505081,166.63,166.53,15.21505081]
[1730484410724,11.55505081,166.63,166.54,1.3332]
[1730484410913,3.0018,166.61,166.58,3.0021]
[1730484411425,3.0018,166.61,166.54,1.3332]
[1730484411426,3.0018,166.61,166.55,11.55505081]
[1730484411724,3.0016,166.62,166.55,11.55505081]
[1730484412120,1.3541,166.65,166.54,1.3332]
[1730484412121,11.55505081,166.63,166.54,1.3332]
[1730484412622,11.55505081,166.63,166.56,3.0025]
[1730484413339,3.002,166.6,166.57,3.0024]
[1730484414621,3.0021,166.59,166.56,3.0025]
[1730484415729,3.0023,166.58,166.53,15.21505081]
[1730484416523,11.55505081,166.63,166.53,15.21505081]
[1730484416826,3.0022,166.59,166.53,15.21505081]
[1730484417630,3.0022,166.59,166.56,3.0026]
[1730484417825,11.55505081,166.63,166.56,3.0026]
[1730484418134,11.55505081,166.61,166.55,3.0027]
[1730484418433,3.0022,166.59,166.53,15.21505081]
[1730484418632,11.55505081,166.64,166.53,15.21505081]
[1730484418932,3.0016,166.62,166.57,3.0023]
[1730484419131,11.55505081,166.64,166.57,3.0023]
[1730484419528,3.0019,166.6,166.57,3.0023]
[1730484419729,11.55505081,166.64,166.53,15.21505081]
[1730484419933,11.55505081,166.64,166.58,3.0021]
[1730484420130,3.0018,166.61,166.58,3.0021]
[1730484420929,3.0021,166.6,166.57,3.0024]
[1730484421136,11.55505081,166.61,166.53,3.66]
[1730484421433,11.55505081,166.63,166.53,3.66]
[1730484421632,12.90915081,166.65,166.53,15.21505081]
[1730484421830,12.90915081,166.65,166.55,11.55505081]
[1730484422028,3.0016,166.62,166.59,3.0019]
[1730484422624,3.0015,166.63,166.6,3.0018]
[1730484423326,11.55505081,166.65,166.58,3.66]
[1730484423527,12.87205081,166.65,166.58,3.66]
[1730484423833,3.0019,166.61,166.58,6.6622]
[1730484424137,1.3345,166.66,166.58,3.66]
[1730484424329,77.76186603,166.67,166.58,15.21505081]
[1730484424533,3.0013,166.64,166.62,3.0015]
[1730484425325,66.20681522,166.67,166.58,15.21505081]
[1730484425536,66.20681522,166.67,166.59,2.6608]
[1730484426044,66.20681522,166.67,166.63,3.0012]
[1730484426240,66.20681522,166.67,166.59,2.6608]
[1730484426432,3.0011,166.65,166.62,3.0015]
[1730484426633,66.20681522,166.67,166.59,2.6608]
[1730484427632,66.20681522,166.67,166.6,11.55505081]
[1730484427838,3.0008,166.67,166.64,3.0011]
[1730484428842,11.55505081,166.72,166.65,3.001]
[1730484429151,3.0006,166.68,166.65,3.001]
[1730484429832,3.0006,166.67,166.65,3.001]
[1730484430744,3.0006,166.67,166.64,3.0011]
[1730484432332,3.001,166.66,166.63,3.0012]
[1730484432634,11.55505081,166.69,166.61,3.66]
[1730484432839,3.0011,166.65,166.62,3.0014]
[1730484433041,3.0011,166.65,166.61,3.66]
[1730484434248,3.0011,166.65,166.62,3.0014]
[1730484434935,11.55505081,166.67,166.56,11.55505081]
[1730484435139,11.55505081,166.65,166.57,3.66]
[1730484435743,3.0019,166.6,166.58,3.0023]
[1730484437640,3.0019,166.6,166.57,3.66]
[1730484437641,3.0019,166.6,166.57,6.6623]
[1730484438840,3.0018,166.61,166.58,3.0022]
[1730484439555,11.55505081,166.65,166.58,3.0022]
[1730484439757,3.0019,166.6,166.57,3.66]
[1730484439937,3.0019,166.6,166.57,6.6624]
[1730484440138,11.55505081,166.63,166.54,14.28185081]
[1730484440459,11.55505081,166.61,166.51,3.66]
[1730484440650,11.55505081,166.59,166.49,11.55505081]
[1730484440950,11.55505081,166.59,166.5,3.0036]
[1730484441460,11.55505081,166.59,166.51,3.0034]
[1730484441855,3.0031,166.54,166.49,3.66]
[1730484442350,1.3319,166.58,166.49,3.66]
[1730484442657,2.6981,166.58,166.49,3.66]
[1730484442853,2.6981,166.58,166.51,3.0035]
[1730484443155,3.0026,166.57,166.49,15.21505081]
[1730484443653,3.0027,166.56,166.53,3.003]
[1730484444755,3.0024,166.58,166.54,3.0028]
[1730484444952,3.0024,166.58,166.51,11.55505081]
[1730484444953,11.55505081,166.61,166.51,11.55505081]
[1730484445353,1.2634,166.64,166.62,3.0015]
[1730484445551,1.2634,166.64,166.56,15.21505081]
[1730484445961,3.0016,166.62,166.59,3.002]
[1730484446554,3.0017,166.61,166.58,3.0022]
[1730484448049,1.2634,166.64,166.56,15.21505081]
[1730484448250,3.0019,166.6,166.56,15.21505081]
[1730484448651,1.2634,166.64,166.56,15.21505081]
[1730484448861,3.0018,166.61,166.57,3.0024]
[1730484449851,1.2634,166.64,166.57,3.0024]
[1730484450049,3.0019,166.61,166.57,3.0024]
[1730484450853,3.0019,166.6,166.57,3.0024]
[1730484455453,1.2634,166.64,166.56,15.21505081]
[1730484455661,1.2634,166.64,166.56,3.66]
[1730484456760,3.0023,166.58,166.56,3.66]
[1730484457562,3.0024,166.57,166.54,18.21795081]
[1730484458355,3.0024,166.57,166.55,3.0028]
[1730484459855,11.55505081,166.63,166.55,3.0028]
[1730484460058,3.0024,166.58,166.55,3.0028]
[1730484461769,3.0026,166.57,166.54,3.66]
[1730484462468,3.0026,166.57,166.52,2.5575]
[1730484462469,11.55505081,166.59,166.47,12.82245081]
[1730484462765,11.55505081,166.57,166.45,14.19005081]
[1730484462956,3.0039,166.49,166.46,3.66]
[1730484463283,11.55505081,166.55,166.45,17.85005081]
[1730484463958,11.55505081,166.55,166.47,3.0042]
[1730484465363,3.0037,166.5,166.47,3.0042]
[1730484465763,11.55505081,166.55,166.45,17.85005081]
[1730484465957,2.6151,166.56,166.47,11.55505081]
[1730484466259,1.3384,166.56,166.47,11.55505081]
[1730484466462,1.3384,166.56,166.5,3.0036]
[1730484466463,3.0033,166.53,166.5,3.0036]
[1730484467472,3.0035,166.52,166.49,3.0039]
[1730484468966,1.3384,166.56,166.47,3.66]
[1730484469264,11.55505081,166.55,166.47,3.66]
[1730484469570,3.0038,166.5,166.47,3.66]
[1730484469774,3.0038,166.5,166.47,6.6641]
[1730484469960,3.0032,166.53,166.47,3.66]
[1730484470161,11.55505081,166.55,166.47,3.66]
[1730484470560,11.55505081,166.55,166.47,6.6642]
[1730484471565,3.0038,166.5,166.47,6.6642]
[1730484471964,11.55505081,166.52,166.43,11.55505081]
[1730484472172,3.0043,166.47,166.43,3.64]
[1730484472363,1.3384,166.56,166.42,1.2971]
[1730484472364,11.55505081,166.5,166.42,1.2971]
[1730484472564,11.55505081,166.5,166.42,6.645]
[1730484472972,11.55505081,166.5,166.42,3.64]
[1730484473773,11.55505081,166.5,166.42,6.6451]
[1730484474073,3.0047,166.45,166.42,6.6451]
[1730484474478,11.55505081,166.5,166.42,3.64]
[1730484474772,3.0045,166.46,166.43,3.0049]
[1730484475866,3.0046,166.45,166.42,6.6451]
[1730484476583,3.0046,166.45,166.43,3.0049]
[1730484478773,3.0046,166.45,166.42,3.0051]
[1730484479483,3.0042,166.47,166.41,3.0053]
[1730484479683,11.55505081,166.48,166.37,1.3206]
[1730484479878,11.55505081,166.46,166.38,3.64]
[1730484480695,3.005,166.43,166.4,3.0054]
[1730484480977,11.55505081,166.46,166.4,3.0054]
[1730484481579,3.005,166.43,166.4,3.0054]
[1730484483288,11.55505081,166.48,166.38,3.64]
[1730484483789,11.55505081,166.48,166.37,1.3206]
[1730484483990,11.55505081,166.48,166.38,3.64]
[1730484484489,3.0051,166.43,166.4,3.0054]
[1730484485887,1.2879,166.49,166.38,3.64]
[1730484485888,11.55505081,166.45,166.39,3.0056]
[1730484486084,3.0055,166.41,166.38,3.64]
[1730484486684,3.0055,166.41,166.38,6.6458]
[1730484487086,3.0055,166.41,166.39,3.0057]
[1730484487384,3.0051,166.43,166.38,3.64]
[1730484487583,3.0051,166.43,166.4,3.0054]
[1730484487779,1.2879,166.49,166.39,11.55505081]
[1730484487981,1.2879,166.49,166.39,12.92515081]
[1730484488192,1.2879,166.49,166.39,1.3701]
[1730484488388,11.55505081,166.47,166.39,1.3701]
[1730484488998,3.0049,166.44,166.41,3.0053]
[1730484489384,11.55505081,166.47,166.39,1.3701]
[1730484489586,12.84295081,166.49,166.39,1.3701]
[1730484490889,11.55505081,166.48,166.39,1.3701]
[1730484491088,1.2879,166.49,166.39,1.3701]
[1730484491693,3.0046,166.46,166.39,1.3701]
[1730484492091,1.3012,166.51,166.41,11.55505081]
[1730484492292,3.004,166.49,166.46,3.0044]
[1730484492488,3.004,166.49,166.43,3.64]
[1730484492893,3.0038,166.5,166.43,3.64]
[1730484493294,11.55505081,166.52,166.43,15.19505081]
[1730484493493,11.55505081,166.52,166.48,3.004]
[1730484493695,11.55505081,166.52,166.43,3.64]
[1730484493892,11.55505081,166.52,166.45,3.0045]
[1730484494205,3.0042,166.48,166.43,3.64]
[1730484494900,11.55505081,166.52,166.43,3.64]
[1730484495089,3.0039,166.49,166.46,3.0044]
[1730484495489,3.0045,166.46,166.43,6.6449]
[1730484495694,11.55505081,166.5,166.43,3.64]
[1730484496798,3.0043,166.47,166.44,3.0047]
[1730484497201,3.0043,166.47,166.43,3.64]
[1730484497399,3.0041,166.48,166.45,3.0045]
[1730484497793,12.83535081,166.52,166.43,3.64]
[1730484497996,3.0039,166.49,166.46,3.0043]
[1730484498203,11.55505081,166.52,166.43,3.64]
[1730484498407,67.58448687,166.53,166.43,15.19505081]
[1730484498597,1.34,166.53,166.43,15.19505081]
[1730484499701,12.82025081,166.54,166.43,15.19505081]
[1730484500092,3.0035,166.52,166.43,15.19505081]
[1730484500800,3.0035,166.51,166.43,15.19505081]
[1730484501007,12.82025081,166.54,166.43,15.19505081]
[1730484501200,11.55505081,166.52,166.43,15.19505081]
[1730484501506,11.55505081,166.52,166.47,3.0042]
[1730484501507,3.0039,166.5,166.47,3.0042]
[1730484502001,1.2652,166.54,166.48,3.004]
[1730484502204,3.0036,166.51,166.48,3.004]
[1730484502406,1.2652,166.54,166.48,3.004]
[1730484503091,1.2652,166.54,166.43,15.19505081]
[1730484503699,1.2652,166.54,166.47,3.0041]
[1730484503700,3.0037,166.5,166.47,3.0041]
[1730484504503,11.55505081,166.53,166.43,3.64]
[1730484504709,3.0042,166.48,166.45,3.0045]
[1730484505102,11.55505081,166.53,166.43,3.64]
[1730484505301,3.004,166.49,166.46,3.0043]
[1730484506096,11.55505081,166.53,166.43,15.19505081]
[1730484506303,3.0037,166.5,166.47,3.0041]
[1730484506507,11.55505081,166.53,166.43,15.19505081]
[1730484507015,3.004,166.49,166.46,3.0043]
[1730484508804,11.55505081,166.53,166.47,3.0042]
[1730484508805,3.0038,166.5,166.47,3.0042]
[1730484509002,11.55505081,166.53,166.47,3.0042]
[1730484511518,3.0039,166.49,166.47,3.0042]
[1730484511811,3.0044,166.47,166.42,2.6504]
[1730484512009,1.369,166.52,166.42,6.2904]
[1730484512714,3.0042,166.48,166.45,3.0045]
[1730484518411,7.38397503,166.46,166.41,11.02397503]
[1730484519318,7.38397503,166.46,166.44,3.0047]
[1730484521815,10.38837503,166.46,166.44,3.0047]
[1730484523727,3.0044,166.46,166.44,3.0047]
[1730484527031,3.0044,166.46,166.42,7.38397503]
[1730484527336,10.38837503,166.46,166.43,3.0049]
[1730484528324,3.0047,166.45,166.42,10.38897503]
[1730484528637,7.38397503,166.46,166.42,10.38897503]
[1730484529026,3.0048,166.45,166.42,10.38897503]
[1730484529227,7.38397503,166.46,166.43,3.0049]
[1730484529729,3.0046,166.45,166.42,7.38397503]
[1730484530924,3.0048,166.44,166.4,11.02397503]
[1730484531125,7.38397503,166.41,166.35,7.38397503]
[1730484531330,7.38397503,166.38,166.34,3.0065]
[1730484531835,3.0062,166.37,166.34,3.0065]
[1730484532139,1.3547,166.44,166.24,7.38397503]
[1730484532140,7.38397503,166.36,166.24,7.38397503]
[1730484532436,7.38397503,166.27,166.24,3.64]
[1730484533330,7.38397503,166.27,166.16,43.28]
[1730484533331,7.38397503,166.25,166.2,3.64]
[1730484533637,4.9947,166.35,166.2,3.64]
[1730484533638,7.38397503,166.24,166.2,3.64]
[1730484534333,7.38397503,166.22,166.19,3.64]
[1730484535129,7.38397503,166.2,166.19,3.64]
[1730484535632,7.38397503,166.2,166.1,7.38397503]
[1730484535830,3.64,166.24,166.09,7.38397503]
[1730484535831,7.38397503,166.15,166.09,7.38397503]
[1730484536032,7.38397503,166.13,166.07,7.38397503]
[1730484536441,7.38397503,166.14,166.09,7.38397503]
[1730484536634,11.57279266,166.17,166.06,12.84259266]
[1730484537438,15.21279266,166.19,166.08,11.57279266]
[1730484537843,3.0097,166.17,166.11,3.0106]
[1730484538142,11.57279266,166.19,166.08,11.57279266]
[1730484538443,14.58229266,166.19,166.12,3.0105]
[1730484538641,14.58229266,166.19,166.08,11.57279266]
[1730484538642,11.57279266,166.19,166.08,11.57279266]
[1730484539140,3.0095,166.18,166.08,11.57279266]
[1730484539545,11.57279266,166.19,166.08,11.57279266]
[1730484539744,11.57279266,166.19,166.06,1.2698]
[1730484539745,11.57279266,166.19,166.14,3.01]
[1730484540240,11.57279266,166.19,166.11,3.64]
[1730484540241,3.64,166.22,166.11,3.64]
[1730484540444,15.57089266,166.23,166.12,11.57279266]
[1730484540641,11.57279266,166.21,166.11,3.64]
[1730484541040,3.0095,166.19,166.13,3.0102]
[1730484541234,3.0095,166.19,166.11,3.64]
[1730484541541,11.57279266,166.21,166.11,3.64]
[1730484541737,14.58189266,166.21,166.11,3.64]
[1730484542235,3.0092,166.2,166.15,3.0099]
[1730484543846,11.57279266,166.21,166.15,3.0099]
[1730484544044,3.0094,166.19,166.15,3.0099]
[1730484544445,11.57279266,166.21,166.14,3.0101]
[1730484544644,3.0095,166.18,166.14,3.0101]
[1730484545837,11.57279266,166.19,166.12,3.0104]
[1730484546234,11.57279266,166.16,166.06,12.84259266]
[1730484546436,11.57279266,166.16,166.08,3.0111]
[1730484546639,11.57279266,166.16,166.06,16.48259266]
[1730484547053,3.0102,166.15,166.1,3.0108]
[1730484547348,11.57279266,166.16,166.1,3.0108]
[1730484548647,3.0104,166.14,166.1,3.0108]
[1730484548947,11.57279266,166.14,166.08,3.0113]
[1730484549139,15.21279266,166.19,166.07,11.57279266]
[1730484549342,11.57279266,166.21,166.09,11.57279266]
[1730484549546,15.21279266,166.21,166.13,3.0102]
[1730484549748,3.0097,166.17,166.09,11.57279266]
[1730484549948,15.21279266,166.21,166.09,11.57279266]
[1730484550136,15.21279266,166.21,166.12,3.0104]
[1730484550337,3.0099,166.16,166.12,3.0104]
[1730484550542,15.21279266,166.21,166.13,3.0103]
[1730484550747,11.57279266,166.21,166.09,11.57279266]
[1730484550952,3.0096,166.18,166.09,11.57279266]
[1730484551149,3.0096,166.18,166.13,3.0102]
[1730484551748,3.0094,166.19,166.11,15.21279266]
[1730484552441,11.57279266,166.21,166.11,15.21279266]
[1730484552848,3.0098,166.17,166.13,3.0103]
[1730484553247,11.57279266,166.19,166.11,3.64]
[1730484554145,3.0099,166.16,166.12,3.0106]
[1730484555146,3.0097,166.17,166.13,3.0103]
[1730484555452,3.9981,166.23,166.11,15.21279266]
[1730484555453,11.57279266,166.21,166.11,15.21279266]
[1730484555751,3.0093,166.2,166.16,3.0098]
[1730484556549,3.0093,166.2,166.12,2.661]
[1730484556857,12.83119266,166.23,166.13,11.57279266]
[1730484557355,14.58139266,166.23,166.19,3.0091]
[1730484557555,14.58139266,166.23,166.14,1.3712]
[1730484557556,14.58139266,166.23,166.16,3.64]
[1730484557749,14.58139266,166.23,166.19,3.0092]
[1730484557957,11.57279266,166.26,166.16,3.64]
[1730484558354,14.57104463,166.26,166.22,3.0087]
[1730484558666,14.57104463,166.26,166.14,1.3712]
[1730484558667,14.58049266,166.28,166.19,3.64]
[1730484558849,11.57279266,166.28,166.22,3.0087]
[1730484559050,11.57279266,166.28,166.2,6.2874]
[1730484559957,3.0079,166.27,166.2,6.2874]
[1730484560158,11.57279266,166.3,166.2,17.86019266]
[1730484560352,3.0074,166.3,166.22,11.57279266]
[1730484560656,11.57279266,166.32,166.25,3.0081]
[1730484560850,3.0074,166.3,166.23,1.3627]
[1730484561254,3.0074,166.3,166.26,3.0079]
[1730484561659,11.57279266,166.32,166.23,1.3627]
[1730484562154,7.6902,166.36,166.24,11.57279266]
[1730484562155,11.57279266,166.35,166.24,11.57279266]
[1730484562357,11.57279266,166.35,166.25,3.64]
[1730484564158,1.3601,166.36,166.26,11.57279266]
[1730484564345,1.3601,166.36,166.23,1.3627]
[1730484564346,11.57279266,166.3,166.23,1.3627]
[1730484564550,3.008,166.27,166.23,4.3713]
[1730484565060,3.008,166.27,166.23,1.3627]
[1730484565449,3.0082,166.26,166.22,3.64]
[1730484565656,11.57279266,166.3,166.22,3.64]
[1730484566260,3.0078,166.28,166.22,3.64]
[1730484567160,3.0078,166.28,166.24,3.0084]
[1730484568666,11.57279266,166.27,166.24,3.0084]
[1730484569360,11.57279266,166.27,166.22,3.64]
[1730484569557,11.57279266,166.27,166.2,2.6474]
[1730484569757,2.93722649,166.33,166.2,3.64]
[1730484569758,11.57279266,166.25,166.2,3.64]
[1730484570060,14.58119266,166.25,166.21,3.0089]
[1730484570265,11.57279266,166.25,166.2,3.64]
[1730484570560,3.0091,166.21,166.17,3.0095]
[1730484570753,3.0091,166.21,166.17,6.6495]
[1730484570953,11.57279266,166.22,166.17,3.64]
[1730484571158,14.58159266,166.22,166.18,3.0094]
[1730484572964,3.0088,166.22,166.19,3.0093]
[1730484574963,11.57279266,166.25,166.17,3.64]
[1730484575160,3.0085,166.24,166.2,3.009]
[1730484575558,11.57279266,166.25,166.17,3.64]
[1730484575959,11.57279266,166.27,166.17,3.64]
[1730484576260,11.57279266,166.27,166.17,15.21279266]
[1730484577366,1.3102,166.32,166.22,11.57279266]
[1730484577367,11.57279266,166.32,166.22,11.57279266]
[1730484577669,11.57279266,166.32,166.23,6.3068]
[1730484578263,3.0074,166.3,166.26,3.008]
[1730484578462,3.0074,166.3,166.23,6.3068]
[1730484578463,11.57279266,166.3,166.23,4.9778]
[1730484578664,11.57279266,166.28,166.23,3.64]
[1730484579058,3.008,166.27,166.24,3.0084]
[1730484579261,3.008,166.27,166.23,3.64]
[1730484579959,11.57279266,166.28,166.23,3.64]
[1730484580162,11.57279266,166.3,166.26,3.008]
[1730484580868,14.58019266,166.3,166.26,3.008]
[1730484581060,11.57279266,166.3,166.23,3.64]
[1730484581368,11.57279266,166.28,166.23,3.64]
[1730484581662,3.008,166.27,166.23,6.6485]
[1730484581863,3.008,166.27,166.23,3.64]
[1730484582460,2.5792,166.33,166.23,3.64]
[1730484582461,3.0084,166.24,166.23,3.64]
[1730484582655,11.57279266,166.26,166.19,4.9895]
[1730484583053,3.0083,166.25,166.22,3.0086]
[1730484583259,11.57279266,166.26,166.22,3.0086]
[1730484584358,11.57279266,166.26,166.19,3.64]
[1730484584666,11.57279266,166.26,166.21,3.0089]